fUSD/lending_fUSD_20250510
["ID","MTS","AMOUNT","RATE_DAILY","PERIOD"]
[360561582,1746890344046,-400.0,0.00019986,2]
[360561583,1746890344107,-400.0,0.00019986,2]
[360561584,1746890344172,-13943.14,0.00019986,2]
[360561585,1746890344236,-400.0,0.00019986,2]
[360561586,1746890344298,-400.0,0.00019986,2]
[360561587,1746890344360,-400.0,0.00019986,2]
[360561588,1746890344429,-880.17,0.00019986,2]
[360561589,1746890344493,-400.0,0.00019986,2]
[360561590,1746890344786,-484.24,0.00019986,2]
[360561591,1746890344850,-317.49713297,0.00019986,2]
[360561592,1746890344911,-400.0,0.00019986,2]
[360561593,1746890344972,-400.0,0.00019986,2]
[360561594,1746890345033,-400.0,0.00019986,2]
[360561595,1746890345090,-400.0,0.00019986,2]
[360561596,1746890345152,-400.0,0.00019986,2]
[360561597,1746890345211,-400.0,0.00019986,2]
[360561598,1746890345271,-400.0,0.00019986,2]
[360561599,1746890345330,-400.0,0.00019986,2]
[360561600,1746890345388,-400.0,0.00019986,2]
[360561601,1746890345449,-400.0,0.00019986,2]
[360561602,1746890345510,-400.0,0.00019986,2]
[360561603,1746890345571,-400.0,0.00019986,2]
[360561604,1746890345633,-413.65,0.00019986,2]
[360561605,1746890345694,-2694.8,0.00019986,2]
[360561606,1746890345755,-400.0,0.00019986,2]
[360561607,1746890345816,-400.0,0.00019986,2]
[360561608,1746890345875,-400.0,0.00019986,2]
[360561609,1746890345932,-1268.72,0.00019986,2]
[360561610,1746890345989,-431.4,0.00019986,2]
[360561611,1746890346045,-400.0,0.00019986,2]
[360561612,1746890346101,-2524.06,0.00019986,2]
[360561613,1746890346162,-419.02,0.00019986,2]
[360561614,1746890346220,-2768.73,0.00019986,2]
[360561615,1746890346280,-2210.12,0.00019986,2]
[360561616,1746890346337,-733.05,0.00019986,2]
[360561617,1746890346396,-400.0,0.00019986,2]
[360561618,1746890346461,-400.0,0.00019986,2]
[360561619,1746890346520,-400.0,0.00019986,2]
[360561620,1746890346579,-400.0,0.00019986,2]
[360561621,1746890346637,-1016.44,0.00019986,2]
[360561622,1746890346695,-460.74,0.00019986,2]
[360561623,1746890346753,-1566.36,0.00019986,2]
[360561624,1746890346810,-400.0,0.00019986,2]
[360561625,1746890346869,-711.68,0.00019986,2]
[360561626,1746890346925,-400.0,0.00019987,2]
[360561627,1746890346984,-400.0,0.00019987,2]
[360561628,1746890347040,-400.0,0.00019987,2]
[360561629,1746890347101,-2345.1,0.00019988,2]
[360561630,1746890347166,-2210.31,0.00019988,2]
[360561631,1746890347224,-1532.49,0.00019988,2]
[360561632,1746890347284,-904.58,0.00019988,2]
[360561633,1746890347346,-8253.53,0.00019988,2]
[360561634,1746890347414,-4530.9,0.00019988,2]
[360561635,1746890347479,-4308.08,0.00019988,2]
[360561636,1746890347539,-400.0,0.00019988,2]
[360561637,1746890347595,-613.6,0.00019988,2]
[360561638,1746890347654,-400.0,0.00019988,2]
[360561639,1746890347710,-832.55,0.00019992,2]
[360561640,1746890347769,-2282.83,0.00019992,2]
[360561641,1746890347823,-2282.83,0.00019992,2]
[360561642,1746890347881,-1547.63,0.00019992,2]
[360561643,1746890347937,-1547.63,0.00019992,2]
[360561644,1746890347996,-1604.69,0.00019992,2]
[360561645,1746890348055,-927.17,0.00019992,2]
[360561646,1746890348113,-927.17,0.00019992,2]
[360561647,1746890348174,-400.0,0.00019992,2]
[360561648,1746890348234,-330.10345886,0.00019992,2]
[360561649,1746890348292,-525.33714083,0.00019992,2]
[360561650,1746890348351,-26212.2186844,0.00019992,2]
[360561651,1746890348664,-400.0,0.00019544,2]
[360561652,1746890348720,-400.0,0.00019644,2]
[360561653,1746890348777,-400.0,0.00019644,2]
[360561654,1746890348836,-400.0,0.00019644,2]
[360561655,1746890348894,-65361.6913156,0.00019992,2]
[360561656,1746890348953,-2607.4,0.00019992,2]
[360561657,1746890349005,-400.0,0.00019992,2]
[360561658,1746890349060,-2309.13,0.00019992,2]
[360561659,1746890349114,-2309.13,0.00019992,2]
[360561660,1746890349168,-400.0,0.00019992,2]
[360561661,1746890349224,-2694.8,0.00019992,2]
[360561662,1746890349279,-1735.54,0.00019992,2]
[360561663,1746890349338,-1735.54,0.00019992,2]
[360561664,1746890349394,-400.0,0.00019992,2]
[360561665,1746890349456,-400.0,0.00019992,2]
[360561666,1746890349517,-860.2,0.00019992,2]
[360561667,1746890349573,-860.2,0.00019992,2]
[360561668,1746890349630,-860.2,0.00019992,2]
[360561669,1746890349685,-860.2,0.00019992,2]
[360561670,1746890349741,-860.25173666,0.00019992,2]
[360561671,1746890349798,-2524.06,0.00019992,2]
[360561672,1746890349857,-2768.73,0.00019992,2]
[360561673,1746890349916,-967.0,0.00019992,2]
[360561674,1746890349971,-967.0,0.00019992,2]
[360561675,1746890350025,-578.3,0.00019992,2]
[360561676,1746890350080,-578.3,0.00019992,2]
[360561677,1746890350136,-1566.36,0.00019992,2]
[360561678,1746890350196,-400.0,0.00019992,2]
[360561679,1746890350258,-1197.04,0.00019992,2]
[360561680,1746890350313,-400.0,0.00019992,2]
[360561681,1746890350373,-1197.04,0.00019992,2]
[360561682,1746890350434,-1197.04,0.00019992,2]
[360561684,1746890350496,-1197.04,0.00019992,2]
[360561685,1746890350552,-1197.2537257,0.00019992,2]
[360561686,1746890350607,-737.22,0.00019993,2]
[360561687,1746890350664,-400.0,0.00019993,2]
[360561688,1746890350717,-400.0,0.00019993,2]
[360561689,1746890350774,-400.0,0.00019993,2]
[360561690,1746890350829,-400.0,0.00019993,2]
[360561691,1746890350884,-400.0,0.00019993,2]
[360561692,1746890351160,-400.0,0.00019993,2]
[360561693,1746890351225,-400.0,0.00019993,2]
[360561695,1746890351285,-532.38,0.00019993,2]
[360561696,1746890351347,-400.0,0.00019993,2]
[360561697,1746890351405,-423.36,0.00019993,2]
[360561698,1746890351468,-423.36,0.00019993,2]
[360561699,1746890351528,-832.55,0.00019993,2]
[360561701,1746890351584,-832.55,0.00019993,2]
[360561702,1746890351640,-832.55,0.00019993,2]
[360561703,1746890351698,-832.55,0.00019993,2]
[360561704,1746890351753,-832.55,0.00019993,2]
[360561705,1746890351807,-832.55,0.00019993,2]
[360561706,1746890351857,-832.55,0.00019993,2]
[360561708,1746890351911,-832.78420083,0.00019993,2]
[360561709,1746890351964,-2568.47,0.00019993,2]
[360561710,1746890352016,-2568.47,0.00019993,2]
[360561711,1746890352068,-400.0,0.00019993,2]
[360561712,1746890352119,-400.0,0.00019993,2]
[360561713,1746890352178,-400.0,0.00019993,2]
[360561715,1746890352236,-400.0,0.00019993,2]
[360561716,1746890352294,-400.0,0.00019993,2]
[360561717,1746890352354,-400.0,0.00019993,2]
[360561718,1746890352417,-400.0,0.00019993,2]
[360561719,1746890352481,-400.0,0.00019993,2]
[360561720,1746890352537,-400.0,0.00019993,2]
[360561721,1746890352595,-2282.83,0.00019993,2]
[360561723,1746890352652,-2282.83,0.00019993,2]
[360561724,1746890352708,-2282.83,0.00019993,2]
[360561725,1746890352762,-2282.83,0.00019993,2]
[360561726,1746890352814,-400.0,0.00019993,2]
[360561727,1746890352868,-2282.83,0.00019993,2]
[360561728,1746890352921,-2282.83,0.00019993,2]
[360561730,1746890352971,-2282.87951947,0.00019993,2]
[360561731,1746890353023,-400.0,0.00019993,2]
[360561732,1746890353074,-400.0,0.00019993,2]
[360561733,1746890353131,-1547.63,0.00019993,2]
[360561734,1746890353184,-1547.63,0.00019993,2]
[360561735,1746890353246,-1547.63,0.00019993,2]
[360561737,1746890353312,-1547.63,0.00019993,2]
[360561738,1746890353376,-1547.63,0.00019993,2]
[360561739,1746890353443,-1547.63,0.00019993,2]
[360561740,1746890353507,-1547.77788038,0.00019993,2]
[360561741,1746890353568,-400.0,0.00019993,2]
[360561742,1746890353626,-1604.69,0.00019993,2]
[360561743,1746890353687,-1604.69,0.00019993,2]
[360561744,1746890353744,-1604.69,0.00019993,2]
[360561745,1746890353804,-1604.69,0.00019993,2]
[360561746,1746890353864,-1604.69,0.00019993,2]
[360561747,1746890353924,-1604.69,0.00019993,2]
[360561748,1746890353979,-1604.69,0.00019993,2]
[360561749,1746890354035,-1604.76673948,0.00019993,2]
[360561750,1746890354093,-603.44,0.00019993,2]
[360561752,1746890354149,-603.44,0.00019993,2]
[360561753,1746890354210,-300.0,0.00019993,2]
[360561754,1746890354266,-414.47,0.00019993,2]
[360561755,1746890354326,-408.76,0.00019993,2]
[360561756,1746890354386,-400.0,0.00019993,2]
[360561758,1746890354452,-400.0,0.00019993,2]
[360561759,1746890354514,-377.87,0.00019993,2]
[360561760,1746890354576,-401.08,0.00019993,2]
[360561761,1746890354644,-401.08,0.00019993,2]
[360561762,1746890354705,-400.0,0.00019993,2]
[360561763,1746890354765,-400.0,0.00019993,2]
[360561764,1746890354823,-400.0,0.00019993,2]
[360561765,1746890354881,-400.0,0.00019993,2]
[360561766,1746890354937,-819.79,0.00019993,2]
[360561767,1746890354996,-400.0,0.00019993,2]
[360561768,1746890355054,-400.0,0.00019993,2]
[360561769,1746890355110,-400.0,0.00019993,2]
[360561770,1746890355164,-400.0,0.00019993,2]
[360561772,1746890355224,-6627.83,0.00019993,2]
[360561773,1746890355287,-6627.83,0.00019993,2]
[360561774,1746890355345,-6627.83,0.00019993,2]
[360561775,1746890355406,-400.0,0.00019993,2]
[360561776,1746890355471,-430.85,0.00019993,2]
[360561778,1746890355532,-430.85,0.00019993,2]
[360561779,1746890355596,-442.89,0.00019993,2]
[360561780,1746890355659,-2284.28,0.00019993,2]
[360561781,1746890355722,-2284.28,0.00019993,2]
[360561782,1746890355781,-2284.28,0.00019993,2]
[360561783,1746890355843,-2345.1,0.00019993,2]
[360561784,1746890355906,-2345.1,0.00019993,2]
[360561785,1746890355967,-2345.1,0.00019993,2]
[360561786,1746890356030,-2345.1,0.00019993,2]
[360561787,1746890356092,-927.17,0.00019993,2]
[360561789,1746890356151,-927.17,0.00019993,2]
[360561790,1746890356222,-927.17,0.00019993,2]
[360561791,1746890356285,-927.17,0.00019993,2]
[360561792,1746890356346,-927.17,0.00019993,2]
[360561793,1746890356408,-927.17,0.00019993,2]
[360561794,1746890356472,-927.27584241,0.00019993,2]
[360561795,1746890356539,-400.0,0.00019993,2]
[360561797,1746890356604,-400.0,0.00019993,2]
[360561798,1746890356669,-400.0,0.00019993,2]
[360561799,1746890356728,-400.0,0.00019993,2]
[360561800,1746890356791,-629.8,0.00019993,2]
[360561801,1746890356853,-2210.31,0.00019993,2]
[360561802,1746890356920,-2210.31,0.00019993,2]
[360561804,1746890356980,-2210.31,0.00019993,2]
[360561805,1746890357041,-2210.31,0.00019993,2]
[360561806,1746890357100,-1809.41,0.00019993,2]
[360561807,1746890357160,-1809.41,0.00019993,2]
[360561808,1746890357221,-1809.41,0.00019993,2]
[360561809,1746890357281,-400.0,0.00019993,2]
[360561810,1746890357341,-400.0,0.00019993,2]
[360561811,1746890357400,-679.7,0.00019993,2]
[360561812,1746890357466,-350.2,0.00019993,2]
[360561813,1746890357523,-1532.49,0.00019993,2]
[360561814,1746890357586,-1532.49,0.00019993,2]
[360561815,1746890357642,-1532.49,0.00019993,2]
[360561816,1746890357698,-1532.49,0.00019993,2]
[360561818,1746890357754,-695.03,0.00019993,2]
[360561819,1746890357808,-695.03,0.00019993,2]
[360561820,1746890358093,-695.03,0.00019993,2]
[360561821,1746890358153,-400.0,0.00019993,2]
[360561822,1746890358214,-400.0,0.00019993,2]
[360561823,1746890358275,-400.0,0.00019993,2]
[360561824,1746890358335,-400.0,0.00019993,2]
[360561825,1746890358395,-400.0,0.00019993,2]
[360561826,1746890358455,-414.42,0.00019993,2]
[360561827,1746890358515,-414.42,0.00019993,2]
[360561828,1746890358573,-2776.73,0.00019993,2]
[360561829,1746890358629,-2776.73,0.00019993,2]
[360561830,1746890358686,-2776.73,0.00019993,2]
[360561831,1746890358743,-409.43,0.00019993,2]
[360561832,1746890358800,-179.12,0.00019993,2]
[360561833,1746890358856,-904.58,0.00019993,2]
[360561834,1746890358909,-904.58,0.00019993,2]
[360561835,1746890358966,-904.58,0.00019993,2]
[360561836,1746890359022,-904.58,0.00019993,2]
[360561837,1746890359074,-400.0,0.00019993,2]
[360561838,1746890359127,-201.43,0.00019993,2]
[360561839,1746890359186,-21190.3,0.00019993,2]
[360561840,1746890359250,-21190.3,0.00019993,2]
[360561841,1746890359314,-21190.3,0.00019993,2]
[360561842,1746890359383,-400.0,0.00019993,2]
[360561843,1746890359455,-26489.91,0.00019993,2]
[360561844,1746890359523,-26489.91,0.00019993,2]
[360561845,1746890359586,-26489.91,0.00019993,2]
[360561846,1746890359650,-91573.91,0.00019993,2]
[360561847,1746890359717,-91573.91,0.00019993,2]
[360561848,1746890359779,-91573.91,0.00019993,2]
[360561849,1746890359840,-91573.91,0.00019993,2]
[360561850,1746890359902,-91573.91,0.00019993,2]
[360561851,1746890359970,-91573.91,0.00019993,2]
[360561852,1746890360032,-91573.91,0.00019993,2]
[360561853,1746890360086,-8253.53,0.00019993,2]
[360561854,1746890360143,-91574.1128,0.00019993,2]
[360561855,1746890360203,-474.78023947,0.00019993,2]
[360561856,1746890360569,-400.0,0.00019178,2]
[360561857,1746890360626,-494.26,0.00019543,2]
[360561858,1746890360684,-400.0,0.00019644,2]
[360561859,1746890360743,-400.0,0.00019644,2]
[360561860,1746890360801,-400.0,0.00019895,2]
[360561861,1746890360857,-400.0,0.00019968,2]
[360561862,1746890360913,-400.0,0.00019986,2]
[360561863,1746890360970,-7778.74976053,0.00019993,2]
[360561864,1746890361027,-8253.53,0.00019993,2]
[360561865,1746890361082,-8253.53,0.00019993,2]
[360561866,1746890361136,-3354.38,0.00019993,2]
[360561867,1746890361194,-400.0,0.00019993,2]
[360561868,1746890361249,-3354.38,0.00019993,2]
[360561869,1746890361305,-3354.38,0.00019993,2]
[360561870,1746890361363,-2607.4,0.00019993,2]
[360561871,1746890361421,-2607.4,0.00019993,2]
[360561872,1746890361480,-400.0,0.00019993,2]
[360561873,1746890361538,-2607.4,0.00019993,2]
[360561874,1746890361594,-224.72576458,0.00019993,2]
[360561875,1746890361653,-2607.4,0.00019993,2]
[360561876,1746890361710,-2607.4,0.00019993,2]
[360561877,1746890361765,-2607.4,0.00019993,2]
[360561878,1746890361820,-2607.4,0.00019993,2]
[360561879,1746890361871,-2607.58549831,0.00019993,2]
[360561880,1746890361921,-400.0,0.00019993,2]
[360561881,1746890361971,-400.0,0.00019993,2]
[360561882,1746890362021,-2309.13,0.00019993,2]
[360561883,1746890362073,-400.0,0.00019993,2]
[360561884,1746890362124,-13943.14,0.00019993,2]
[360561885,1746890362176,-2309.13,0.00019993,2]
[360561886,1746890362228,-400.0,0.00019993,2]
[360561887,1746890362282,-13943.14,0.00019993,2]
[360561888,1746890362337,-2309.13,0.00019993,2]
[360561889,1746890362396,-13943.14,0.00019993,2]
[360561890,1746890362458,-2309.13,0.00019993,2]
[360561891,1746890362516,-2309.13,0.00019993,2]
[360561892,1746890362571,-2309.13,0.00019993,2]
[360561893,1746890362628,-2309.35248841,0.00019993,2]
[360561894,1746890362680,-310.17583803,0.00019993,2]
[360561895,1746890362734,-400.0,0.00019993,2]
[360561896,1746890362788,-400.0,0.00019993,2]
[360561897,1746890362838,-400.0,0.00019993,2]
[360561898,1746890362892,-880.17,0.00019993,2]
[360561899,1746890362940,-400.0,0.00019993,2]
[360561900,1746890362990,-515.82284822,0.00019993,2]
[360561901,1746890363041,-484.24,0.00019993,2]
[360561902,1746890363092,-484.24,0.00019993,2]
[360561903,1746890363146,-375.33100714,0.00019993,2]
[360561904,1746890363202,-400.0,0.00019993,2]
[360561905,1746890363263,-400.0,0.00019993,2]
[360561906,1746890363324,-400.0,0.00019993,2]
[360561907,1746890363386,-520.71849884,0.00019993,2]
[360561908,1746890363447,-195.25,0.00019993,2]
[360561909,1746890363512,-400.0,0.00019993,2]
[360561910,1746890363730,-4530.9,0.00019993,2]
[360561911,1746890363796,-4530.9,0.00019993,2]
[360561912,1746890363856,-4530.9,0.00019993,2]
[360561913,1746890363919,-4530.9,0.00019993,2]
[360561914,1746890363979,-400.0,0.00019993,2]
[360561915,1746890364037,-400.0,0.00019993,2]
[360561916,1746890364096,-400.0,0.00019993,2]
[360561917,1746890364154,-400.0,0.00019993,2]
[360561918,1746890364220,-400.0,0.00019993,2]
[360561919,1746890364283,-400.0,0.00019993,2]
[360561920,1746890364344,-400.0,0.00019993,2]
[360561921,1746890364407,-400.0,0.00019993,2]
[360561922,1746890364470,-400.0,0.00019993,2]
[360561923,1746890364529,-400.0,0.00019993,2]
[360561924,1746890364588,-400.0,0.00019993,2]
[360561925,1746890364648,-400.0,0.00019993,2]
[360561926,1746890364707,-400.0,0.00019993,2]
[360561927,1746890364766,-413.65,0.00019993,2]
[360561928,1746890364821,-413.65,0.00019993,2]
[360561929,1746890364880,-2694.8,0.00019993,2]
[360561930,1746890364937,-318.41879053,0.00019993,2]
[360561931,1746890364996,-2694.8,0.00019993,2]
[360561932,1746890365057,-2694.8,0.00019993,2]
[360561933,1746890365115,-400.0,0.00019993,2]
[360561934,1746890365178,-2694.8,0.00019993,2]
[360561935,1746890365237,-400.0,0.00019993,2]
[360561936,1746890365299,-1735.54,0.00019993,2]
[360561937,1746890365358,-1735.54,0.00019993,2]
[360561938,1746890365421,-1735.54,0.00019993,2]
[360561939,1746890365481,-1735.54,0.00019993,2]
[360561940,1746890365540,-1735.54,0.00019993,2]
[360561941,1746890365597,-4308.08,0.00019993,2]
[360561942,1746890365653,-1735.54,0.00019993,2]
[360561943,1746890365709,-4308.08,0.00019993,2]
[360561944,1746890365767,-4308.08,0.00019993,2]
[360561945,1746890365822,-1735.72251765,0.00019993,2]
[360561946,1746890365879,-4308.08,0.00019993,2]
[360561947,1746890365933,-2694.8,0.00019993,2]
[360561948,1746890365993,-2694.8,0.00019993,2]
[360561949,1746890366053,-400.0,0.00019993,2]
[360561950,1746890366110,-2694.8,0.00019993,2]
[360561951,1746890366171,-2694.84372283,0.00019993,2]
[360561952,1746890366230,-400.0,0.00019993,2]
[360561953,1746890366292,-400.0,0.00019993,2]
[360561954,1746890366356,-400.0,0.00019993,2]
[360561955,1746890366415,-1268.72,0.00019993,2]
[360561956,1746890366477,-1268.72,0.00019993,2]
[360561957,1746890366537,-400.0,0.00019993,2]
[360561958,1746890366594,-400.0,0.00019993,2]
[360561959,1746890366652,-400.0,0.00019993,2]
[360561960,1746890366708,-227.95846598,0.00019993,2]
[360561961,1746890366763,-431.4,0.00019993,2]
[360561962,1746890366818,-431.4,0.00019993,2]
[360561963,1746890366872,-400.0,0.00019993,2]
[360561964,1746890366932,-2524.06,0.00019993,2]
[360561965,1746890366985,-419.02,0.00019993,2]
[360561966,1746890367042,-2524.06,0.00019993,2]
[360561967,1746890367097,-2524.06,0.00019993,2]
[360561968,1746890367153,-2524.06,0.00019993,2]
[360561969,1746890367216,-2524.06,0.00019993,2]
[360561970,1746890367274,-2524.06,0.00019993,2]
[360561971,1746890367338,-2524.06,0.00019993,2]
[360561972,1746890367397,-2524.11439362,0.00019993,2]
[360561973,1746890367462,-400.0,0.00019993,2]
[360561974,1746890367530,-400.0,0.00019993,2]
[360561975,1746890367597,-400.0,0.00019993,2]
[360561976,1746890367661,-400.0,0.00019993,2]
[360561977,1746890367723,-2768.73,0.00019993,2]
[360561978,1746890367779,-2768.73,0.00019993,2]
[360561979,1746890367834,-2768.73,0.00019993,2]
[360561980,1746890367888,-2210.12,0.00019993,2]
[360561981,1746890367940,-2768.73,0.00019993,2]
[360561982,1746890367994,-2210.12,0.00019993,2]
[360561983,1746890368046,-2768.73,0.00019993,2]
[360561984,1746890368100,-2768.73,0.00019993,2]
[360561985,1746890368154,-2768.73,0.00019993,2]
[360561986,1746890368209,-2768.92988231,0.00019993,2]
[360561987,1746890368272,-733.05,0.00019993,2]
[360561988,1746890368332,-400.0,0.00019993,2]
[360561989,1746890368393,-400.0,0.00019993,2]
[360561990,1746890368458,-485.72,0.00019993,2]
[360561991,1746890368520,-400.0,0.00019993,2]
[360561992,1746890368579,-400.0,0.00019993,2]
[360561993,1746890368636,-400.0,0.00019993,2]
[360561994,1746890368690,-1016.44,0.00019993,2]
[360561995,1746890368744,-1016.44,0.00019993,2]
[360561996,1746890368802,-613.6,0.00019993,2]
[360561997,1746890368855,-613.6,0.00019993,2]
[360561998,1746890368910,-613.6,0.00019993,2]
[360561999,1746890368969,-613.6,0.00019993,2]
[360562000,1746890369024,-460.74,0.00019993,2]
[360562001,1746890369079,-460.74,0.00019993,2]
[360562002,1746890369136,-967.0,0.00019993,2]
[360562003,1746890369192,-967.0,0.00019993,2]
[360562004,1746890369252,-967.0,0.00019993,2]
[360562005,1746890369309,-967.0,0.00019993,2]
[360562006,1746890369371,-578.3,0.00019993,2]
[360562007,1746890369429,-967.0,0.00019993,2]
[360562008,1746890369488,-578.3,0.00019993,2]
[360562009,1746890369547,-967.0,0.00019993,2]
[360562010,1746890369603,-578.3,0.00019993,2]
[360562011,1746890369661,-967.0,0.00019993,2]
[360562012,1746890369716,-578.3,0.00019993,2]
[360562013,1746890369772,-578.3,0.00019993,2]
[360562014,1746890369826,-578.3,0.00019993,2]
[360562015,1746890369880,-578.46462737,0.00019993,2]
[360562016,1746890369937,-400.0,0.00019993,2]
[360562017,1746890369990,-1566.36,0.00019993,2]
[360562018,1746890370051,-400.0,0.00019993,2]
[360562019,1746890370267,-1566.36,0.00019993,2]
[360562020,1746890370332,-400.0,0.00019993,2]
[360562021,1746890370389,-400.0,0.00019993,2]
[360562022,1746890370452,-1566.36,0.00019993,2]
[360562023,1746890370514,-400.0,0.00019993,2]
[360562024,1746890370570,-1566.36,0.00019993,2]
[360562025,1746890370626,-1566.36,0.00019993,2]
[360562026,1746890370681,-1566.36,0.00019993,2]
[360562027,1746890370740,-1566.36,0.00019993,2]
[360562028,1746890370799,-1566.37987428,0.00019993,2]
[360562029,1746890370853,-400.0,0.00019993,2]
[360562030,1746890370907,-400.0,0.00019993,2]
[360562031,1746890370963,-400.0,0.00019993,2]
[360562032,1746890371019,-356.93846549,0.00019993,2]
[360562033,1746890371077,-711.68,0.00019993,2]
[360562034,1746890371134,-400.9,0.00019993,2]
[360562035,1746890371192,-737.22,0.00019994,2]
[360562036,1746890371253,-737.22,0.00019994,2]
[360562037,1746890371311,-737.22,0.00019994,2]
[360562038,1746890371367,-737.22,0.00019994,2]
[360562039,1746890371429,-400.0,0.00019994,2]
[360562040,1746890371485,-400.0,0.00019994,2]
[360562041,1746890371541,-400.0,0.00019994,2]
[360562042,1746890371598,-400.0,0.00019994,2]
[360562043,1746890371654,-400.0,0.00019994,2]
[360562044,1746890371711,-400.0,0.00019994,2]
[360562045,1746890371768,-400.0,0.00019994,2]
[360562046,1746890371822,-400.0,0.00019994,2]
[360562047,1746890371877,-400.0,0.00019994,2]
[360562048,1746890371931,-400.0,0.00019994,2]
[360562049,1746890371983,-400.0,0.00019994,2]
[360562050,1746890372037,-400.0,0.00019994,2]
[360562051,1746890372089,-400.0,0.00019994,2]
[360562052,1746890372141,-400.0,0.00019994,2]
[360562053,1746890372194,-400.0,0.00019994,2]
[360562054,1746890372247,-400.0,0.00019994,2]
[360562055,1746890372302,-400.0,0.00019994,2]
[360562056,1746890372356,-400.0,0.00019994,2]
[360562057,1746890372415,-400.0,0.00019994,2]
[360562058,1746890372474,-400.0,0.00019994,2]
[360562059,1746890372539,-400.0,0.00019994,2]
[360562060,1746890372602,-400.0,0.00019994,2]
[360562061,1746890372659,-400.0,0.00019994,2]
[360562062,1746890372716,-400.0,0.00019994,2]
[360562063,1746890372772,-435.44314514,0.00019994,2]
[360562064,1746890372827,-400.0,0.00019994,2]
[360562065,1746890372884,-400.0,0.00019994,2]
[360562066,1746890372937,-400.0,0.00019994,2]
[360562067,1746890372992,-400.0,0.00019994,2]
[360562068,1746890373047,-400.0,0.00019994,2]
[360562069,1746890373100,-400.0,0.00019994,2]
[360562070,1746890373157,-400.0,0.00019994,2]
[360562071,1746890373215,-395.88762985,0.00019994,2]
[360562072,1746890373272,-400.0,0.00019994,2]
[360562073,1746890373331,-400.0,0.00019994,2]
[360562074,1746890373389,-400.0,0.00019994,2]
[360562075,1746890373450,-400.0,0.00019994,2]
[360562076,1746890373516,-532.38,0.00019994,2]
[360562077,1746890373580,-532.38,0.00019994,2]
[360562078,1746890373641,-532.38,0.00019994,2]
[360562079,1746890373707,-532.38,0.00019994,2]
[360562080,1746890373766,-400.0,0.00019994,2]
[360562081,1746890373823,-400.0,0.00019994,2]
[360562082,1746890373879,-400.0,0.00019994,2]
[360562083,1746890373934,-400.0,0.00019994,2]
[360562084,1746890373993,-423.36,0.00019994,2]
[360562085,1746890374051,-423.36,0.00019994,2]
[360562086,1746890374110,-423.36,0.00019994,2]
[360562087,1746890374168,-423.36,0.00019994,2]
[360562088,1746890374228,-423.36,0.00019994,2]
[360562089,1746890374291,-423.36,0.00019994,2]
[360562090,1746890374350,-2568.47,0.00019994,2]
[360562091,1746890374412,-2568.47,0.00019994,2]
[360562092,1746890374474,-2568.47,0.00019994,2]
[360562093,1746890374530,-2568.47,0.00019994,2]
[360562094,1746890374587,-2568.47,0.00019994,2]
[360562095,1746890374657,-2568.47,0.00019994,2]
[360562096,1746890374719,-400.0,0.00019994,2]
[360562097,1746890374777,-400.0,0.00019994,2]